fUSD/lending_fUSD_20260627
["ID","MTS","AMOUNT","RATE_DAILY","PERIOD"]
[426521671,1782529838000,-273.14,0.00024174,2]
[426521669,1782529838000,-321.6814889,0.00024094,7]
[426521677,1782529838000,-165.24,0.00024658,2]
[426521676,1782529838000,-165.11,0.00024658,2]
[426521670,1782529838000,-300.0,0.00024173,2]
[426521672,1782529838000,-9999.99,0.00024174,2]
[426521678,1782529838000,-11899.5114617,0.00024766,2]
[426521679,1782529838000,-11422.24033411,0.00024783,2]
[426521681,1782529838000,-1148.6178,0.00025594,14]
[426521683,1782529838000,-39191.94921319,0.000258,2]
[426521680,1782529838000,-848.9225387,0.00025094,14]
[426521686,1782529838000,-655.0,0.00027396,5]
[426521685,1782529838000,-11422.24033411,0.00027246,2]
[426521675,1782529838000,-567.48427654,0.00024594,7]
[426521687,1782529838000,-500.0,0.00027396,2]
[426521690,1782529838000,-500.0,0.00027396,2]
[426521749,1782529839000,-150.0,0.00031159,30]
[426521746,1782529839000,-150.0,0.00031138,30]
[426521748,1782529839000,-150.0,0.00031159,30]
[426521747,1782529839000,-150.0,0.00031138,30]
[426521750,1782529839000,-150.0,0.0003121,30]
[426521739,1782529839000,-150.0,0.00030995,30]
[426521740,1782529839000,-3338.0,0.00031,90]
[426521742,1782529839000,-7058.01,0.00031,2]
[426521743,1782529839000,-14060.0,0.0003104,20]
[426521751,1782529839000,-150.0,0.00031224,30]
[426521741,1782529839000,-1000.0,0.00031,7]
[426521745,1782529839000,-150.0,0.00031077,30]
[426521756,1782529839000,-150.0,0.00031323,30]
[426521759,1782529839000,-150.0,0.00031405,30]
[426521752,1782529839000,-150.0,0.00031241,30]
[426521754,1782529839000,-150.0,0.00031282,30]
[426521753,1782529839000,-150.0,0.00031282,30]
[426521758,1782529839000,-150.0,0.00031353,30]
[426521757,1782529839000,-150.0,0.00031323,30]
[426521768,1782529839000,-150.0,0.00031568,30]
[426521760,1782529839000,-150.0,0.00031425,30]
[426521761,1782529839000,-150.0,0.00031425,30]
[426521762,1782529839000,-150.0,0.00031425,30]
[426521763,1782529839000,-1320.31194566,0.0003143,4]
[426521767,1782529839000,-150.0,0.00031497,30]
[426521738,1782529839000,-150.0,0.00030995,30]
[426521755,1782529839000,-150.0,0.00031308,30]
[426521735,1782529839000,-151.10894201,0.00030995,30]
[426521715,1782529839000,-504.52564077,0.00030099,120]
[426521736,1782529839000,-151.59174141,0.00030995,30]
[426521710,1782529839000,-963.95,0.00030099,7]
[426521711,1782529839000,-500.0,0.00030099,120]
[426521712,1782529839000,-500.0,0.00030099,120]
[426521713,1782529839000,-500.0,0.00030099,120]
[426521719,1782529839000,-4164.43,0.00030099,7]
[426521714,1782529839000,-500.0,0.00030099,120]
[426521720,1782529839000,-301.09867368,0.00030099,120]
[426521718,1782529839000,-166.66695113,0.00030099,120]
[426521717,1782529839000,-500.0,0.00030099,120]
[426521716,1782529839000,-500.0,0.00030099,2]
[426521721,1782529839000,-59608.89682707,0.000301,7]
[426521722,1782529839000,-1156.59633166,0.00030136,2]
[426521737,1782529839000,-150.0,0.00030995,30]
[426521724,1782529839000,-3684.37744904,0.00030136,2]
[426521723,1782529839000,-1625.65312541,0.00030136,2]
[426521725,1782529839000,-573.84523762,0.00030136,2]
[426521731,1782529839000,-150.0,0.00030995,30]
[426521727,1782529839000,-2852.214,0.00030577,26]
[426521728,1782529839000,-376.351,0.00030577,26]
[426521732,1782529839000,-150.0,0.00030995,30]
[426521730,1782529839000,-150.0,0.00030995,30]
[426521764,1782529839000,-150.0,0.00031454,30]
[426521729,1782529839000,-1313.72562424,0.00030628,3]
[426521734,1782529839000,-150.0,0.00030995,30]
[426521744,1782529839000,-150.0,0.00031066,30]
[426521733,1782529839000,-150.0,0.00030995,30]
[426521726,1782529839000,-250.7130581,0.00030137,2]
[426521766,1782529839000,-150.0,0.00031486,30]
[426521799,1782529839000,-150.0,0.00031999,30]
[426521778,1782529839000,-150.0,0.00031712,30]
[426521800,1782529839000,-14060.0,0.00032,20]
[426521792,1782529839000,-150.0,0.00031913,30]
[426521797,1782529839000,-150.0,0.00031978,30]
[426521801,1782529839000,-150.0,0.0003206,30]
[426521806,1782529839000,-150.0,0.00032142,30]
[426521814,1782529839000,-150.0,0.00032286,30]
[426521815,1782529839000,-150.0,0.00032286,30]
[426521816,1782529839000,-150.0,0.00032306,30]
[426521807,1782529839000,-150.0,0.00032142,30]
[426521808,1782529839000,-11899.5114617,0.00032166,2]
[426521810,1782529839000,-150.0,0.00032214,30]
[426521812,1782529839000,-150.0,0.00032247,30]
[426521796,1782529839000,-150.0,0.00031978,30]
[426521811,1782529839000,-150.0,0.00032224,30]
[426521809,1782529839000,-11422.24033411,0.00032173,2]
[426521818,1782529839000,-150.0,0.00032358,30]
[426521819,1782529839000,-150.0,0.00032372,30]
[426521817,1782529839000,-150.0,0.00032306,30]
[426521825,1782529839000,-150.0,0.00032501,30]
[426521821,1782529839000,-150.0,0.00032429,30]
[426521823,1782529839000,-150.0,0.0003247,30]
[426521822,1782529839000,-150.0,0.00032429,30]
[426521824,1782529839000,-150.0,0.0003247,30]
[426521826,1782529839000,-150.0,0.00032552,30]
[426521820,1782529839000,-150.0,0.00032388,30]
[426521765,1782529839000,-150.0,0.00031486,30]
[426521813,1782529839000,-150.0,0.00032286,30]
[426521795,1782529839000,-500.0,0.00031978,120]
[426521805,1782529839000,-150.0,0.00032142,30]
[426521798,1782529839000,-150.0,0.00031999,30]
[426521780,1782529839000,-680.41,0.00031781,7]
[426521772,1782529839000,-150.0,0.0003164,30]
[426521769,1782529839000,-150.0,0.00031568,30]
[426521773,1782529839000,-150.0,0.0003165,30]
[426521771,1782529839000,-150.0,0.00031621,30]
[426521775,1782529839000,-150.0,0.00031683,30]
[426521777,1782529839000,-150.0,0.00031712,30]
[426521776,1782529839000,-741.87,0.00031696,30]
[426521779,1782529839000,-150.0,0.00031732,30]
[426521774,1782529839000,-150.0,0.0003165,30]
[426521782,1782529839000,-1130.72,0.00031781,7]
[426521781,1782529839000,-1098.83,0.00031781,7]
[426521783,1782529839000,-625.48,0.00031781,7]
[426521793,1782529839000,-150.0,0.00031927,30]
[426521784,1782529839000,-150.0,0.00031784,30]
[426521789,1782529839000,-150.0,0.00031855,30]
[426521803,1782529839000,-150.0,0.00032142,30]
[426521802,1782529839000,-150.0,0.00032071,30]
[426521794,1782529839000,-150.0,0.00031934,30]
[426521790,1782529839000,-150.0,0.00031896,30]
[426521804,1782529839000,-150.0,0.00032142,30]
[426521791,1782529839000,-1621.69702387,0.000319,7]
[426521786,1782529839000,-150.0,0.00031814,30]
[426521785,1782529839000,-150.0,0.00031814,30]
[426521770,1782529839000,-150.0,0.00031568,30]
[426521788,1782529839000,-150.0,0.00031855,30]
[426521787,1782529839000,-150.0,0.00031855,30]
[426521863,1782529840000,-150.0,0.00033147,30]
[426521869,1782529840000,-150.0,0.0003329,30]
[426521870,1782529840000,-150.0,0.0003329,30]
[426521874,1782529840000,-150.0,0.00033362,30]
[426521855,1782529840000,-12511.04685942,0.00033,7]
[426521857,1782529840000,-150.0,0.00033003,30]
[426521861,1782529840000,-150.0,0.00033126,30]
[426521858,1782529840000,-150.0,0.00033044,30]
[426521862,1782529840000,-150.0,0.00033126,30]
[426521860,1782529840000,-150.0,0.00033075,30]
[426521866,1782529840000,-150.0,0.00033186,30]
[426521859,1782529840000,-150.0,0.00033061,30]
[426521872,1782529840000,-150.0,0.0003329,30]
[426521876,1782529840000,-150.0,0.00033434,30]
[426521867,1782529840000,-150.0,0.00033208,30]
[426521873,1782529840000,-150.0,0.0003329,30]
[426521875,1782529840000,-150.0,0.00033372,30]
[426521871,1782529840000,-150.0,0.0003329,30]
[426521868,1782529840000,-150.0,0.00033219,30]
[426521878,1782529840000,-150.0,0.00033454,30]
[426521883,1782529840000,-150.0,0.00033536,30]
[426521889,1782529840000,-150.0,0.00033618,30]
[426521888,1782529840000,-150.0,0.00033577,30]
[426521887,1782529840000,-150.0,0.00033577,30]
[426521877,1782529840000,-150.0,0.00033434,30]
[426521856,1782529840000,-150.0,0.00033003,30]
[426521865,1782529840000,-150.0,0.00033147,30]
[426521854,1782529840000,-150.0,0.00032962,30]
[426521842,1782529840000,-150.0,0.00032788,30]
[426521864,1782529840000,-150.0,0.00033147,30]
[426521828,1782529840000,-150.0,0.00032573,30]
[426521827,1782529840000,-150.0,0.0003256,30]
[426521830,1782529840000,-150.0,0.00032602,30]
[426521839,1782529840000,-659.99,0.00032734,7]
[426521835,1782529840000,-150.0,0.00032716,30]
[426521831,1782529840000,-150.0,0.00032634,30]
[426521829,1782529840000,-150.0,0.00032573,30]
[426521836,1782529840000,-150.0,0.00032716,30]
[426521834,1782529840000,-150.0,0.00032716,30]
[426521833,1782529840000,-150.0,0.00032645,30]
[426521837,1782529840000,-150.0,0.00032716,30]
[426521838,1782529840000,-150.0,0.00032716,30]
[426521853,1782529840000,-150.0,0.00032962,30]
[426521832,1782529840000,-150.0,0.00032634,30]
[426521880,1782529840000,-150.0,0.00033499,30]
[426521848,1782529840000,-150.0,0.00032873,30]
[426521847,1782529840000,-150.0,0.0003286,30]
[426521846,1782529840000,-150.0,0.0003286,30]
[426521843,1782529840000,-150.0,0.00032798,30]
[426521844,1782529840000,-150.0,0.00032798,30]
[426521850,1782529840000,-581.48342284,0.00032903,2]
[426521845,1782529840000,-150.0,0.00032831,30]
[426521849,1782529840000,-150.0,0.0003288,30]
[426521851,1782529840000,-150.0,0.00032932,30]
[426521852,1782529840000,-14060.0,0.0003296,20]
[426521841,1782529840000,-1096.8,0.00032734,7]
[426521840,1782529840000,-1065.86,0.00032734,7]
[426521882,1782529840000,-150.0,0.0003352,30]
[426521881,1782529840000,-150.0,0.00033506,30]
[426521932,1782529840000,-150.0,0.00034367,120]
[426521918,1782529840000,-150.0,0.0003411,30]
[426521919,1782529840000,-150.0,0.0003411,30]
[426521920,1782529840000,-150.0,0.00034125,30]
[426521915,1782529840000,-150.0,0.00034028,30]
[426521921,1782529840000,-150.0,0.00034151,30]
[426521924,1782529840000,-150.0,0.00034209,30]
[426521925,1782529840000,-150.0,0.00034223,30]
[426521930,1782529840000,-501.0,0.00034295,2]
[426521929,1782529840000,-150.0,0.00034295,120]
[426521934,1782529840000,-159.67003098,0.00034438,120]
[426521886,1782529840000,-150.0,0.00033577,30]
[426521926,1782529840000,-150.0,0.00034274,120]
[426521927,1782529840000,-150.0,0.00034274,120]
[426521928,1782529840000,-150.0,0.00034295,120]
[426521936,1782529840000,-155.64628095,0.00034438,120]
[426521935,1782529840000,-153.36361647,0.00034438,120]
[426521933,1782529840000,-1500.0,0.000344,7]
[426521931,1782529840000,-150.0,0.00034356,120]
[426521937,1782529840000,-165.1832928,0.00034438,120]
[426521939,1782529840000,-219.22885374,0.00034438,120]
[426521938,1782529840000,-160.30084189,0.00034438,120]
[426521941,1782529840000,-197.35888381,0.00034438,120]
[426521940,1782529840000,-162.04139455,0.00034438,120]
[426521943,1782529840000,-500.0,0.00034441,120]
[426521945,1782529840000,-500.0,0.00034441,120]
[426521942,1782529840000,-500.0,0.00034441,120]
[426521944,1782529840000,-500.0,0.00034441,120]
[426521916,1782529840000,-150.0,0.0003408,30]
[426521914,1782529840000,-150.0,0.00034008,30]
[426521917,1782529840000,-183.43,0.00034109,2]
[426521911,1782529840000,-150.0,0.00033979,30]
[426521879,1782529840000,-150.0,0.00033454,30]
[426521884,1782529840000,-1500.0,0.00033566,10]
[426521885,1782529840000,-346.51722372,0.00033572,2]
[426521892,1782529840000,-5800.0,0.0003367,2]
[426521894,1782529840000,-1062.88,0.00033688,30]
[426521890,1782529840000,-150.0,0.00033618,30]
[426521896,1782529840000,-150.0,0.00033721,30]
[426521895,1782529840000,-150.0,0.000337,30]
[426521913,1782529840000,-150.0,0.00034008,30]
[426521893,1782529840000,-1032.9,0.00033688,30]
[426521897,1782529840000,-150.0,0.00033721,30]
[426521898,1782529840000,-150.0,0.0003375,30]
[426521902,1782529840000,-150.0,0.00033812,30]
[426521900,1782529840000,-150.0,0.00033782,30]
[426521891,1782529840000,-150.0,0.00033649,30]
[426521904,1782529840000,-150.0,0.00033864,30]
[426521903,1782529840000,-150.0,0.00033864,30]
[426521922,1782529840000,-150.0,0.00034151,30]
[426521912,1782529840000,-150.0,0.00034008,30]
[426521899,1782529840000,-150.0,0.00033782,30]
[426521908,1782529840000,-150.0,0.00033936,30]
[426521923,1782529840000,-150.0,0.00034192,30]
[426521910,1782529840000,-150.0,0.00033946,30]
[426521906,1782529840000,-222.02795484,0.0003391,2]
[426521907,1782529840000,-14060.0,0.0003392,20]
[426521905,1782529840000,-150.0,0.00033864,30]
[426521901,1782529840000,-150.0,0.00033793,30]
[426521909,1782529840000,-150.0,0.00033946,30]
[426521957,1782529841000,-963.95,0.00034441,7]
[426521974,1782529841000,-500.0,0.00034441,120]
[426521964,1782529841000,-500.0,0.00034441,120]
[426521965,1782529841000,-500.0,0.00034441,120]
[426521963,1782529841000,-500.0,0.00034441,120]
[426521969,1782529841000,-506.90266902,0.00034441,120]
[426521966,1782529841000,-500.0,0.00034441,120]
[426521968,1782529841000,-500.0,0.00034441,120]
[426521972,1782529841000,-500.0,0.00034441,120]
[426521970,1782529841000,-500.0,0.00034441,120]
[426521956,1782529841000,-963.95,0.00034441,7]
[426521967,1782529841000,-500.0,0.00034441,120]
[426521958,1782529841000,-500.0,0.00034441,120]
[426521973,1782529841000,-500.0,0.00034441,120]
[426521954,1782529841000,-963.95,0.00034441,7]
[426521960,1782529841000,-614.98871594,0.00034441,120]
[426521959,1782529841000,-500.0,0.00034441,120]
[426521951,1782529841000,-327.48334483,0.00034441,120]
[426521961,1782529841000,-500.0,0.00034441,120]
[426521952,1782529841000,-963.95,0.00034441,7]
[426521950,1782529841000,-500.0,0.00034441,120]
[426521962,1782529841000,-500.0,0.00034441,120]
[426521949,1782529841000,-500.0,0.00034441,120]
[426521947,1782529841000,-500.0,0.00034441,120]
[426521948,1782529841000,-500.0,0.00034441,120]
[426521946,1782529841000,-500.0,0.00034441,120]
[426521955,1782529841000,-963.95,0.00034441,7]
[426521971,1782529841000,-500.0,0.00034441,120]
[426521953,1782529841000,-963.95,0.00034441,7]
[426521975,1782529841000,-500.0,0.00034441,120]
[426522003,1782529841000,-568.13833919,0.00034442,120]
[426522002,1782529841000,-2911.60590985,0.00034442,120]
[426522001,1782529841000,-2720.94,0.00030099,7]
[426522000,1782529841000,-499424.49191967,0.00034442,120]
[426521998,1782529841000,-482.2755918,0.00034442,8]
[426521997,1782529841000,-151.0,0.00034442,7]
[426521996,1782529841000,-151.0,0.00034442,7]
[426521993,1782529841000,-500.0,0.00034441,120]
[426521995,1782529841000,-190.85045223,0.00034442,2]
[426521994,1782529841000,-500.0,0.00034441,120]
[426521992,1782529841000,-500.0,0.00034441,120]
[426522004,1782529841000,-266.4671318,0.00034442,120]
[426521990,1782529841000,-500.0,0.00034441,120]
[426521999,1782529841000,-298.86387065,0.00034442,2]
[426521986,1782529841000,-4164.43,0.00034441,7]
[426521991,1782529841000,-500.0,0.00034441,120]
[426521985,1782529841000,-4164.43,0.00034441,7]
[426521981,1782529841000,-500.0,0.00034441,2]
[426521977,1782529841000,-500.0,0.00034441,2]
[426521983,1782529841000,-4164.43,0.00034441,7]
[426521978,1782529841000,-500.0,0.00034441,2]
[426521979,1782529841000,-500.0,0.00034441,2]
[426521980,1782529841000,-500.0,0.00034441,2]
[426521982,1782529841000,-454.53878002,0.00034441,120]
[426521976,1782529841000,-500.0,0.00034441,2]
[426521984,1782529841000,-4164.43,0.00034441,7]
[426521987,1782529841000,-4164.43,0.00034441,7]
[426521989,1782529841000,-500.0,0.00034441,120]
[426521988,1782529841000,-4164.43,0.00034441,7]
[426522015,1782529846000,-165.82,0.00024658,2]
[426522016,1782529846000,-165.82,0.00027817,7]
[426522017,1782529846000,-180.36,0.0002911,10]
[426522018,1782530044000,500.0,0.00037296,120]
[426522019,1782530045000,500.0,0.00037296,120]
[426522022,1782530045000,500.0,0.00037296,120]
[426522021,1782530045000,500.0,0.00037296,120]
[426522020,1782530045000,500.0,0.00037296,120]
[426522023,1782530046000,540.38885479,0.00037296,120]
[426522025,1782530124000,500.0,0.00037296,120]
[426522028,1782530130000,500.0,0.00037296,120]
[426522027,1782530130000,500.0,0.00037296,120]
[426522026,1782530130000,500.0,0.00037296,120]
[426522031,1782530131000,622.54697971,0.00037296,120]
[426522030,1782530131000,500.0,0.00037296,120]
[426522029,1782530131000,500.0,0.00037296,120]
[426522033,1782530288000,578.839983,7.945e-05,2]
[426522035,1782530406000,166.66,0.00022257,30]
[426522048,1782530713000,500.0,0.00037294,120]
[426522047,1782530713000,500.0,0.00037294,120]
[426522046,1782530713000,500.0,0.00037294,120]
[426522049,1782530714000,500.0,0.00037294,120]
[426522050,1782530714000,500.0,0.00037294,120]
[426522051,1782530714000,500.0,0.00037294,120]
[426522054,1782530715000,500.0,0.00037294,120]
[426522053,1782530715000,500.0,0.00037294,120]
[426522052,1782530715000,500.0,0.00037294,120]
[426522056,1782530716000,160.97484695,0.00037294,120]
[426522055,1782530716000,500.0,0.00037294,120]
[426522057,1782530791000,-500.6699774,0.00014,2]
[426522088,1782531032000,-500.0,0.00014999,2]
[426522097,1782531032000,-195.48987383,0.00014999,2]
[426522089,1782531032000,-500.0,0.00014999,2]
[426522093,1782531032000,-195.48987383,0.00014999,2]
[426522085,1782531032000,-500.0,0.00014999,2]
[426522092,1782531032000,-195.48987383,0.00014999,2]
[426522086,1782531032000,-500.0,0.00014999,2]
[426522090,1782531032000,-152.0,0.00014999,2]
[426522094,1782531032000,-195.48987383,0.00014999,2]
[426522087,1782531032000,-500.0,0.00014999,2]
[426522095,1782531032000,-195.48987383,0.00014999,2]
[426522120,1782531032000,-195.48987383,0.00014999,2]
[426522118,1782531032000,-195.48987383,0.00014999,2]
[426522117,1782531032000,-195.48987383,0.00014999,2]
[426522111,1782531032000,-195.48987383,0.00014999,2]
[426522101,1782531032000,-195.48987383,0.00014999,2]
[426522115,1782531032000,-195.48987383,0.00014999,2]
[426522103,1782531032000,-195.48987383,0.00014999,2]
[426522096,1782531032000,-195.48987383,0.00014999,2]
[426522081,1782531032000,-500.0,0.00014999,2]
[426522078,1782531032000,-150.0,0.00014699,2]
[426522083,1782531032000,-500.0,0.00014999,2]
[426522065,1782531032000,-178.002071,0.00014,2]
[426522068,1782531032000,-163.83,0.00014004,2]
[426522067,1782531032000,-150.0,0.00014002,2]
[426522062,1782531032000,-223.81,0.00013448,2]
[426522063,1782531032000,-252.16529135,0.000137,2]
[426522064,1782531032000,-225.9872196,0.00014,2]
[426522066,1782531032000,-357.39691055,0.00014001,2]
[426522071,1782531032000,-150.0,0.00014279,2]
[426522069,1782531032000,-150.0,0.00014139,2]
[426522072,1782531032000,-150.0,0.00014419,2]
[426522070,1782531032000,-308.20202275,0.00014199,2]
[426522073,1782531032000,-3202.0,0.000145,2]
[426522075,1782531032000,-150.0,0.00014559,2]
[426522084,1782531032000,-500.0,0.00014999,2]
[426522074,1782531032000,-216.51184279,0.00014518,2]
[426522079,1782531032000,-225.0,0.00014839,2]
[426522076,1782531032000,-285.05513885,0.00014599,2]
[426522082,1782531032000,-500.0,0.00014999,2]
[426522080,1782531032000,-150.0,0.00014998,2]
[426522077,1782531032000,-160.0,0.00014672,2]
[426522113,1782531032000,-195.48987383,0.00014999,2]
[426522105,1782531032000,-195.48987383,0.00014999,2]
[426522107,1782531032000,-551.8460587,0.00014999,2]
[426522170,1782531032000,-1000.0,0.00017406,2]
[426522172,1782531032000,-276.53,0.00017429,2]
[426522168,1782531032000,-3269.75,0.00017395,2]
[426522174,1782531032000,-2561.53,0.00017447,2]
[426522186,1782531032000,-200.0,0.00017631,2]
[426522179,1782531032000,-2454.34,0.00017561,2]
[426522181,1782531032000,-2137.64,0.00017586,2]
[426522182,1782531032000,-1221.54,0.00017592,2]
[426522178,1782531032000,-500.0,0.00017465,2]
[426522191,1782531032000,-580.16,0.00018153,2]
[426522176,1782531032000,-250.0,0.00017459,2]
[426522187,1782531032000,-210.93,0.00017647,2]
[426522190,1782531032000,-419.91426247,0.00018013,2]
[426522188,1782531032000,-580.16,0.0001771,2]
[426522192,1782531032000,-580.16,0.00018596,2]
[426522189,1782531032000,-500.0,0.00017739,2]
[426522194,1782531032000,-150.0,0.00019002,2]
[426522193,1782531032000,-736.0,0.00018628,2]
[426522122,1782531032000,-195.48987383,0.00014999,2]
[426522155,1782531032000,-500.0,0.00016917,2]
[426522166,1782531032000,-3542.62,0.00017387,2]
[426522184,1782531032000,-152.78,0.00017608,2]
[426522162,1782531032000,-433.0,0.00017338,2]
[426522109,1782531032000,-195.48987383,0.00014999,2]
[426522151,1782531032000,-500.0,0.00016643,2]
[426522099,1782531032000,-195.48987383,0.00014999,2]
[426522132,1782531032000,-250.0,0.000154,2]
[426522141,1782531032000,-160.0,0.00016086,2]
[426522145,1782531032000,-4653.58171209,0.00016098,2]
[426522128,1782531032000,-500.0,0.00015273,2]
[426522143,1782531032000,-500.0,0.00016095,2]
[426522124,1782531032000,-195.48987383,0.00014999,2]
[426522147,1782531032000,-255.0,0.00016123,2]
[426522130,1782531032000,-250.0,0.000154,2]
[426522139,1782531032000,-500.0,0.00015821,2]
[426522137,1782531032000,-328.01,0.00015749,2]
[426522134,1782531032000,-500.0,0.00015547,2]
[426522153,1782531032000,-1785.49,0.0001674,2]
[426522158,1782531032000,-500.0,0.00017191,2]
[426522149,1782531032000,-500.0,0.00016369,2]
[426522160,1782531032000,-443.63,0.00017315,2]
[426522126,1782531032000,-195.48987383,0.00014999,2]
[426522164,1782531032000,-1852.42,0.00017376,2]
[426522238,1782531033000,-9999.99,0.00022562,2]
[426522236,1782531033000,-522.57,0.00022562,2]
[426522235,1782531033000,-500.0,0.00022562,2]
[426522237,1782531033000,-2604.15,0.00022562,2]
[426522232,1782531033000,-500.0,0.00022561,2]
[426522240,1782531033000,-5699.99,0.00022562,2]
[426522231,1782531033000,-500.0,0.00022561,2]
[426522229,1782531033000,-181.57129196,0.00022561,2]
[426522241,1782531033000,-999.99,0.00022562,2]
[426522239,1782531033000,-111463.97,0.00022562,2]
[426522230,1782531033000,-405.94434231,0.00022561,2]
[426522233,1782531033000,-500.0,0.00022561,2]
[426522234,1782531033000,-168.94593771,0.00022562,2]
[426522247,1782531033000,-204.07,0.00024174,2]
[426522243,1782531033000,-853.0,0.00023,2]
[426522242,1782531033000,-166.44,0.00022934,2]
[426522248,1782531033000,-1361.49,0.00024174,2]
[426522245,1782531033000,-286.99,0.00023886,2]
[426522246,1782531033000,-22754.08140553,0.00024088,2]
[426522251,1782531033000,-3269.75,0.00024353,2]
[426522250,1782531033000,-1221.54,0.0002419,2]
[426522253,1782531033000,-151.8,0.00024658,2]
[426522249,1782531033000,-543.9,0.00024174,2]
[426522252,1782531033000,-1000.0,0.00024658,2]
[426522262,1782531033000,-227.73592247,0.00026397,2]
[426522260,1782531033000,-150.0,0.00026106,5]
[426522225,1782531033000,-2500.0,0.00022462,2]
[426522244,1782531033000,-468.66,0.00023826,2]
[426522217,1782531033000,-9999.99,0.00021757,2]
[426522205,1782531033000,-2500.0,0.00021184,2]
[426522226,1782531033000,-154.00796842,0.00022559,7]
[426522257,1782531033000,-151.8,0.00025711,7]
[426522195,1782531033000,-580.16,0.00019039,2]
[426522200,1782531033000,-203.47654999,0.00020226,2]
[426522198,1782531033000,-1221.54,0.00019791,2]
[426522197,1782531033000,-580.16,0.00019481,2]
[426522202,1782531033000,-166.66,0.00020561,2]
[426522201,1782531033000,-450.29,0.00020479,2]
[426522204,1782531033000,-166.66,0.00020985,2]
[426522203,1782531033000,-718.00246315,0.00020765,2]
[426522214,1782531033000,-499.99,0.00021757,2]
[426522215,1782531033000,-9999.99,0.00021757,2]
[426522206,1782531033000,-286.99,0.00021232,2]
[426522207,1782531033000,-1656.84,0.0002133,2]
[426522220,1782531033000,-5000.0,0.00021918,2]
[426522208,1782531033000,-166.66,0.00021409,2]
[426522209,1782531033000,-3680.9,0.00021623,2]
[426522213,1782531033000,-299.99,0.00021757,7]
[426522211,1782531033000,-6531.26,0.00021757,2]
[426522212,1782531033000,-150.99,0.00021757,2]
[426522221,1782531033000,-1221.54,0.0002199,2]
[426522228,1782531033000,-374.60627279,0.00022561,2]
[426522222,1782531033000,-200.0,0.00022087,2]
[426522224,1782531033000,-4187.9073,0.00022462,2]
[426522218,1782531033000,-166.66,0.00021833,2]
[426522219,1782531033000,-172.31,0.00021892,2]
[426522216,1782531033000,-9999.99,0.00021757,2]
[426522223,1782531033000,-22754.08140559,0.00022462,2]
[426522227,1782531033000,-500.0,0.00022561,2]
[426522196,1782531033000,-450.29,0.00019109,2]
[426522254,1782531033000,-165.67,0.00024658,2]
[426522199,1782531033000,-166.66,0.00020137,2]
[426522256,1782531033000,-227.73592247,0.00025397,2]
[426522291,1782531033000,-150.0,0.00027974,7]
[426522298,1782531033000,-150.0,0.00028474,7]
[426522301,1782531033000,-150.0,0.00028974,30]
[426522294,1782531033000,-151.82394831,0.00028397,7]
[426522297,1782531033000,-150.0,0.00028474,7]
[426522295,1782531033000,-173.0,0.00028456,5]
[426522299,1782531033000,-151.8,0.0002887,7]
[426522300,1782531033000,-22754.08140553,0.00028968,2]